fUSD/lending_fUSD_20260521
["ID","MTS","AMOUNT","RATE_DAILY","PERIOD"]
[422754520,1779364231000,-86.6062733,0.00010047,2]
[422754518,1779364231000,-157.81,9.905e-05,2]
[422754523,1779364231000,-59.73853606,0.00010444,2]
[422754521,1779364231000,-150.0,0.00010341,2]
[422754522,1779364231000,-157.81,0.00010343,2]
[422754517,1779364231000,-157.81,9.467e-05,2]
[422754576,1779364232000,-166.66,0.00014384,2]
[422754561,1779364232000,-166.66,0.00013973,2]
[422754568,1779364232000,-560.48,0.00014057,2]
[422754570,1779364232000,-166.66,0.0001411,2]
[422754572,1779364232000,-166.66,0.00014247,2]
[422754575,1779364232000,-150.0,0.00014296,2]
[422754589,1779364232000,-20390.3531569,0.00014773,2]
[422754579,1779364232000,-670.86,0.00014653,2]
[422754573,1779364232000,-2000.0,0.00014263,2]
[422754592,1779364232000,-4268.0279658,0.00014773,2]
[422754587,1779364232000,-1680.0,0.00014752,2]
[422754577,1779364232000,-1111.78,0.00014412,2]
[422754583,1779364232000,-200.0,0.00014708,2]
[422754585,1779364232000,-40571.0506,0.00014712,2]
[422754581,1779364232000,-420.0,0.00014702,2]
[422754596,1779364232000,-9891.4181505,0.00014773,2]
[422754594,1779364232000,-45434.2130686,0.00014773,2]
[422754566,1779364232000,-250.0,0.00014,2]
[422754603,1779364232000,-156.0,0.00014773,2]
[422754574,1779364232000,-670.86,0.00014296,2]
[422754557,1779364232000,-166.66,0.00013836,2]
[422754537,1779364232000,-225.49,0.00013402,2]
[422754555,1779364232000,-182.57,0.00013763,2]
[422754525,1779364232000,-157.81,0.00010782,2]
[422754524,1779364232000,-165.26146394,0.00010444,2]
[422754526,1779364232000,-157.81,0.0001122,2]
[422754527,1779364232000,-157.81,0.00011658,2]
[422754528,1779364232000,-157.81,0.00012096,2]
[422754530,1779364232000,-157.81,0.00012534,2]
[422754532,1779364232000,-157.81,0.00012972,2]
[422754529,1779364232000,-215.23956962,0.00012281,2]
[422754533,1779364232000,-1016.7,0.0001316,2]
[422754534,1779364232000,-2206.13,0.00013244,2]
[422754607,1779364232000,-156.0,0.00014773,2]
[422754539,1779364232000,-157.81,0.0001341,2]
[422754541,1779364232000,-1200.0,0.00013411,2]
[422754543,1779364232000,-159.52,0.00013412,2]
[422754546,1779364232000,-1147.71,0.00013412,2]
[422754550,1779364232000,-166.66,0.00013699,2]
[422754548,1779364232000,-300.0,0.00013412,2]
[422754559,1779364232000,-176.24,0.00013906,2]
[422754552,1779364232000,-200.0,0.00013699,2]
[422754563,1779364232000,-154.27,0.00014,2]
[422754598,1779364232000,-20875.5869822,0.00014773,2]
[422754535,1779364232000,-500.0,0.00013328,2]
[422754605,1779364232000,-156.0,0.00014773,2]
[422754662,1779364232000,-500.0,0.00014999,2]
[422754658,1779364232000,-500.0,0.00014999,2]
[422754652,1779364232000,-500.0,0.00014999,2]
[422754656,1779364232000,-500.0,0.00014999,2]
[422754664,1779364232000,-500.0,0.00014999,2]
[422754668,1779364232000,-500.0,0.00014999,2]
[422754670,1779364232000,-500.0,0.00014999,2]
[422754673,1779364232000,-500.0,0.00014999,2]
[422754674,1779364232000,-500.0,0.00014999,2]
[422754678,1779364232000,-500.0,0.00014999,2]
[422754684,1779364232000,-500.0,0.00014999,2]
[422754676,1779364232000,-500.0,0.00014999,2]
[422754683,1779364232000,-500.0,0.00014999,2]
[422754680,1779364232000,-455.98378796,0.00014999,2]
[422754686,1779364232000,-646.77472674,0.00014999,2]
[422754688,1779364232000,-151980.64468431,0.00015,2]
[422754694,1779364232000,-109059.54606819,0.00015,2]
[422754696,1779364232000,-101516.6972309,0.00015,2]
[422754600,1779364232000,-3650.2346362,0.00014773,2]
[422754646,1779364232000,-500.0,0.00014999,2]
[422754642,1779364232000,-500.0,0.00014999,2]
[422754691,1779364232000,-65588.57203451,0.00015,2]
[422754666,1779364232000,-500.0,0.00014999,2]
[422754611,1779364232000,-17702.5037245,0.00014812,2]
[422754613,1779364232000,-163.32305236,0.000149,2]
[422754609,1779364232000,-1025.62,0.000148,2]
[422754615,1779364232000,-2179.39537449,0.000149,2]
[422754617,1779364232000,-500.0,0.00014999,2]
[422754619,1779364232000,-500.0,0.00014999,2]
[422754621,1779364232000,-500.0,0.00014999,2]
[422754650,1779364232000,-500.0,0.00014999,2]
[422754636,1779364232000,-525.68090872,0.00014999,2]
[422754638,1779364232000,-500.0,0.00014999,2]
[422754623,1779364232000,-500.0,0.00014999,2]
[422754626,1779364232000,-500.0,0.00014999,2]
[422754630,1779364232000,-523.28200266,0.00014999,2]
[422754632,1779364232000,-1349.28756852,0.00014999,5]
[422754628,1779364232000,-500.0,0.00014999,2]
[422754634,1779364232000,-578.19370214,0.00014999,2]
[422754660,1779364232000,-500.0,0.00014999,2]
[422754648,1779364232000,-579.29644569,0.00014999,2]
[422754644,1779364232000,-500.0,0.00014999,2]
[422754654,1779364232000,-500.0,0.00014999,2]
[422754640,1779364232000,-500.0,0.00014999,2]
[422754704,1779364238000,-3802.00789222,0.00015,2]
[422754703,1779364238000,-1833.54198318,0.00015,2]
[422754702,1779364238000,-816.62506821,0.00015,2]
[422754741,1779364240000,-672.21086169,0.00015,2]
[422754750,1779364243000,-939.5666029,0.00015,2]
[422754836,1779364246000,-3867.9920111,0.00015,2]
[422754835,1779364246000,-2156.6899,0.00015,2]
[422754838,1779364246000,-8909.55934986,0.00015,2]
[422754837,1779364246000,-267.33527767,0.00015,2]
[422754853,1779364337000,1000.0,0.00028767,120]
[422754854,1779364444000,1000.0,0.00028767,120]
[422754855,1779364482000,659.27948228,0.00028767,120]
[422754856,1779364522000,11045.83474995,0.000287,120]
[422754857,1779364575000,500.0,0.00027854,120]
[422754858,1779364859000,500.0,0.00028273,120]
[422754859,1779365136000,2500.0,0.00028,120]
[422754860,1779365145000,2503.0,0.00028,120]
[422754862,1779365185000,500.0,0.00028273,120]
[422754867,1779365341000,1000.0,0.00028766,120]
[422754928,1779365432000,-162.74,0.00014676,2]
[422754926,1779365432000,-150.0,0.00014675,2]
[422754925,1779365432000,-300.0,0.00014637,2]
[422754922,1779365432000,-2500.0,0.00014609,2]
[422754921,1779365432000,-300.0,0.0001458,2]
[422754924,1779365432000,-300.0,0.00014637,2]
[422754918,1779365432000,-2477.24143225,0.00014576,2]
[422754923,1779365432000,-300.0,0.00014637,2]
[422754914,1779365432000,-530.12669042,0.0001399,2]
[422754919,1779365432000,-2500.0,0.00014577,2]
[422754917,1779365432000,-1961.45583705,0.00014576,2]
[422754915,1779365432000,-6657.78230798,0.0001399,2]
[422754916,1779365432000,-2918.06312317,0.00014576,2]
[422754913,1779365432000,-6282.14035044,0.0001399,2]
[422754911,1779365432000,-174.0,0.00013879,2]
[422754912,1779365432000,-1200.0,0.00013989,2]
[422754927,1779365432000,-1207.8295635,0.00014676,2]
[422754920,1779365432000,-2500.0,0.00014578,2]
[422754929,1779365432000,-1682.4242589,0.00014676,2]
[422754944,1779365432000,-21579.10298866,0.000149,2]
[422754930,1779365432000,-214767.256972,0.00014676,2]
[422754931,1779365432000,-166476.1631783,0.00014676,2]
[422754953,1779365432000,-500.0,0.00014999,2]
[422754952,1779365432000,-500.0,0.00014999,2]
[422754950,1779365432000,-27259.68893185,0.0001498,2]
[422754948,1779365432000,-937.57,0.00014951,2]
[422754949,1779365432000,-76771.60586479,0.0001498,2]
[422754951,1779365432000,-49170.1576774,0.0001498,2]
[422754947,1779365432000,-151.0,0.000149,2]
[422754945,1779365432000,-58757.11901134,0.000149,2]
[422754946,1779365432000,-151.0,0.000149,2]
[422754943,1779365432000,-620.84411128,0.00014899,2]
[422754936,1779365432000,-158.20432752,0.00014676,2]
[422754933,1779365432000,-9741.230013,0.00014676,2]
[422754937,1779365432000,-182.57,0.00014754,2]
[422754940,1779365432000,-500.0,0.00014899,2]
[422754934,1779365432000,-2699.5384278,0.00014676,2]
[422754939,1779365432000,-200.0,0.00014834,2]
[422754932,1779365432000,-171.4932866,0.00014676,2]
[422754954,1779365432000,-2298.96908354,0.00015,2]
[422754993,1779365438000,-1961.45583698,0.00017021,2]
[422754992,1779365438000,-2918.0631231,0.00017021,2]
[422754984,1779365438000,-500.0,0.00016142,2]
[422754985,1779365438000,-231.2,0.00016438,2]
[422754983,1779365438000,-680.65626998,0.000161,2]
[422754994,1779365438000,-433.0,0.00017023,2]
[422754990,1779365438000,-229.31493992,0.000169,2]
[422754991,1779365438000,-2351.0,0.00016927,2]
[422755004,1779365438000,-163.84664788,0.00018,2]
[422755001,1779365438000,-737.0,0.00017945,2]
[422754999,1779365438000,-229.31493992,0.000173,2]
[422754996,1779365438000,-554.0,0.0001726,2]
[422754997,1779365438000,-737.0,0.0001726,2]
[422754998,1779365438000,-151.0,0.0001726,2]
[422755000,1779365438000,-450.0,0.00017407,2]
[422755002,1779365438000,-2477.24143218,0.00017999,2]
[422754987,1779365438000,-229.31493992,0.000166,2]
[422755003,1779365438000,-165.38949432,0.00018,2]
[422755005,1779365438000,-350.0,0.00018,2]
[422754995,1779365438000,-229.31493992,0.000171,2]
[422754982,1779365438000,-937.57,0.00016073,2]
[422754971,1779365438000,-1680.0,0.00015388,2]
[422754980,1779365438000,-2500.0,0.00016034,2]
[422755013,1779365438000,-163.84664788,0.000187,2]
[422754962,1779365438000,-60761.7265897,0.00015,2]
[422754963,1779365438000,-297.0,0.00015,2]
[422754964,1779365438000,-219.53407674,0.00015,2]
[422754966,1779365438000,-161.98,0.00015163,2]
[422754968,1779365438000,-150.0,0.00015266,2]
[422754965,1779365438000,-258.05463005,0.00015,2]
[422754967,1779365438000,-600.0,0.00015266,2]
[422754969,1779365438000,-300.0,0.00015266,2]
[422754972,1779365438000,-937.57,0.00015699,2]
[422754974,1779365438000,-255.0,0.00015805,2]
[422754970,1779365438000,-937.57,0.00015325,2]
[422754973,1779365438000,-154.27,0.000157,2]
[422754976,1779365438000,-300.0,0.00016,2]
[422754975,1779365438000,-215.23956962,0.00015935,2]
[422754978,1779365438000,-300.0,0.00016034,2]
[422754988,1779365438000,-229.31493992,0.000167,2]
[422754977,1779365438000,-680.65626998,0.00016,2]
[422754981,1779365438000,-450.0,0.00016037,2]
[422754986,1779365438000,-937.57,0.00016446,2]
[422755008,1779365438000,-736.0,0.00018329,2]
[422754979,1779365438000,-2500.0,0.00016034,2]
[422755007,1779365438000,-163.84664788,0.000182,2]
[422755059,1779365438000,-276.0,0.00021,2]
[422755060,1779365438000,-482.0,0.00021,2]
[422755049,1779365438000,-327.0,0.0002,2]
[422755053,1779365438000,-223.8,0.00020365,2]
[422755051,1779365438000,-500.0,0.00020301,2]
[422755064,1779365438000,-500.0,0.00021,5]
[422755055,1779365438000,-231.2,0.00020381,2]
[422755056,1779365438000,-154.27,0.000209,2]
[422755066,1779365438000,-1207.8295635,0.00021036,2]
[422755062,1779365438000,-327.0,0.00021,2]
[422755068,1779365438000,-1682.4242589,0.00021036,2]
[422755076,1779365438000,-200.0,0.00021837,2]
[422755072,1779365438000,-2477.24143218,0.00021423,2]
[422755074,1779365438000,-3000.0,0.000216,2]
[422755078,1779365438000,-601.3376128,0.00021837,2]
[422755082,1779365438000,-151.0,0.00021837,2]
[422755080,1779365438000,-7965.4105327,0.00021837,2]
[422755084,1779365438000,-1734.62772924,0.00021837,2]
[422755085,1779365438000,-578.20924308,0.00021837,2]
[422755087,1779365438000,-2822.68033931,0.00021911,2]
[422755070,1779365438000,-200.0,0.00021156,2]
[422755058,1779365438000,-1744.0,0.00021,2]
[422755006,1779365438000,-165.38949432,0.000182,2]
[422755047,1779365438000,-231.0,0.0002,2]
[422755057,1779365438000,-200.0,0.00021,2]
[422755011,1779365438000,-163.84664788,0.000185,2]
[422755010,1779365438000,-231.2,0.0001841,2]
[422755009,1779365438000,-163.84664788,0.000184,2]
[422755012,1779365438000,-939.0,0.00018619,2]
[422755014,1779365438000,-2918.0631231,0.00019466,2]
[422755016,1779365438000,-1961.45583698,0.00019466,2]
[422755028,1779365438000,-200.0,0.00019847,2]
[422755020,1779365438000,-177.01,0.00019688,2]
[422755024,1779365438000,-180.09060688,0.00019689,2]
[422755018,1779365438000,-1235.95,0.00019682,2]
[422755032,1779365438000,-500.0,0.00019999,2]
[422755030,1779365438000,-400.0,0.000199,7]
[422755026,1779365438000,-225.49,0.00019837,2]
[422755034,1779365438000,-400.0,0.0002,2]
[422755039,1779365438000,-200.0,0.0002,2]
[422755036,1779365438000,-15000.0,0.0002,15]
[422755041,1779365438000,-1744.0,0.0002,2]
[422755043,1779365438000,-276.0,0.0002,2]
[422755045,1779365438000,-482.0,0.0002,2]
[422755022,1779365438000,-349.58764866,0.00019689,2]
[422755118,1779365440000,-1961.45583698,0.00021911,2]
[422755119,1779365440000,-4001.19519544,0.00021918,2]
[422755117,1779365440000,-95.38278379,0.00021911,2]
[422755116,1779365440000,-250.0,0.00021156,2]
[422755160,1779365443000,-519.95463627,0.00021918,2]
[422755161,1779365443000,-478.85016829,0.00021918,2]
[422755164,1779365443000,-461.14983171,0.00022,2]
[422755162,1779365443000,-450.0,0.00022,2]
[422755163,1779365443000,-200.0,0.00022,2]
[422755215,1779365446000,-482.0,0.00022,2]
[422755224,1779365446000,-536.15957544,0.00022729,2]
[422755225,1779365446000,-161.98,0.00022744,2]
[422755217,1779365446000,-432.145,0.00022048,2]
[422755220,1779365446000,-1009.69606829,0.00022142,2]
[422755216,1779365446000,-327.0,0.00022,2]
[422755214,1779365446000,-276.0,0.00022,2]
[422755219,1779365446000,-226.25393171,0.00022142,2]
[422755222,1779365446000,-1798.80895522,0.00022385,2]
[422755226,1779365446000,-989.0,0.00022829,5]
[422755221,1779365446000,-231.2,0.00022353,2]
[422755223,1779365446000,-150.0,0.00022488,2]
[422755227,1779365446000,-159.77369082,0.00022829,2]
[422755230,1779365446000,-500.0,0.00022829,2]
[422755229,1779365446000,-617.0,0.00022829,2]
[422755231,1779365446000,-617.0,0.00022829,2]
[422755233,1779365446000,-78.47234589,0.00022829,2]
[422755228,1779365446000,-164.11863008,0.00022829,2]
[422755232,1779365446000,-500.0,0.00022829,2]
[422755234,1779365446000,-270.39079621,0.00022829,2]
[422755213,1779365446000,-1282.85016829,0.00022,2]
[422755218,1779365446000,-156.202,0.00022048,2]
[422755250,1779365900000,500.0,0.00027587,120]
[422755252,1779366021000,3423.3,0.0002876,120]
[422755257,1779366330000,854.93,0.00028523,120]
[422755258,1779366364000,500.0,0.00027587,120]
[422755261,1779366540000,1000.0,0.00028765,120]
[422755267,1779366632000,-1252.06,0.00014,2]
[422755263,1779366632000,-2424.12134096,0.000119,2]
[422755264,1779366632000,-215.23956962,0.00012201,2]
[422755265,1779366632000,-250.0,0.00014,2]
[422755268,1779366632000,-300.0,0.00014899,2]
[422755266,1779366632000,-1285.71,0.00014,2]
[422755269,1779366632000,-99151.7967,0.000149,2]
[422755271,1779366632000,-1924.22528205,0.00014963,2]
[422755272,1779366632000,-49458.7447153,0.00015,2]
[422755274,1779366632000,-12979.82148807,0.00015,2]
[422755275,1779366632000,-11569.05753524,0.00015,2]
[422755273,1779366632000,-14313.37538297,0.00015,2]
[422755270,1779366632000,-1814.4355,0.000149,2]
[422755283,1779366638000,-947.5999416,0.00015,2]
[422755322,1779366643000,-676.05694954,0.00015,2]
[422755321,1779366643000,-478.51655685,0.00015,2]
[422755320,1779366643000,-2152.05996395,0.00015,2]
[422755332,1779366646000,-2546.604,0.00015,2]
[422755333,1779366646000,-8449.38137617,0.00015,2]
[422755350,1779367000000,151.0,0.00028,120]
[422755352,1779367336000,1434.52,0.00028766,120]
[422755353,1779367384000,1000.0,0.00028767,120]
[422755354,1779367462000,394.0,0.00028767,120]
[422755357,1779367740000,1000.0,0.00028766,120]
[422755358,1779367742000,3423.3,0.0002876,120]
[422755359,1779367763000,467.07,0.00028767,120]
[422755360,1779367771000,467.07,0.00028767,120]
[422755361,1779367780000,467.07,0.00028767,120]
[422755362,1779367788000,467.06,0.00028767,120]
[422755363,1779367796000,467.06,0.00028767,120]
[422755364,1779367830000,151.0,0.00028767,120]
[422755379,1779367832000,-2051.22,0.00013699,2]
[422755376,1779367832000,-150.79,0.00013188,2]
[422755385,1779367832000,-250.0,0.00014,2]
[422755383,1779367832000,-154.29,0.00013706,2]
[422755386,1779367832000,-2504.11,0.00014,2]
[422755387,1779367832000,-150.79,0.00014109,2]
[422755382,1779367832000,-1200.0,0.00013705,2]
[422755380,1779367832000,-300.0,0.00013705,2]
[422755381,1779367832000,-300.0,0.00013705,2]
[422755384,1779367832000,-2070.33,0.00013962,2]
[422755372,1779367832000,-98.36335959,9.506e-05,2]
[422755377,1779367832000,-2563.8452346,0.000135,2]
[422755375,1779367832000,-150.79,0.00012268,2]
[422755373,1779367832000,-150.79,0.00010427,2]
[422755398,1779367832000,-22205.75,0.0001479,2]
[422755371,1779367832000,-52.42664041,9.506e-05,2]
[422755370,1779367832000,-150.79,8.585e-05,2]
[422755369,1779367832000,-150.79,7.665e-05,2]
[422755367,1779367832000,-856.57435562,7.665e-05,2]
[422755368,1779367832000,-177.72985578,7.665e-05,2]
[422755366,1779367832000,-2293.35981057,7.665e-05,2]
[422755378,1779367832000,-201.23,0.00013596,2]
[422755397,1779367832000,-153.12137068,0.00014726,2]
[422755374,1779367832000,-150.79,0.00011347,2]
[422755391,1779367832000,-2070.33,0.00014311,2]
[422755414,1779367832000,-4634.44725137,0.000148,2]
[422755415,1779367832000,-508.0,0.000148,2]
[422755413,1779367832000,-26601.23765002,0.000148,2]
[422755408,1779367832000,-31601.60129324,0.000148,2]
[422755412,1779367832000,-27883.76682687,0.000148,2]
[422755410,1779367832000,-2682.32922946,0.000148,2]
[422755407,1779367832000,-500.0,0.00014799,2]
[422755402,1779367832000,-500.0,0.00014799,2]
[422755403,1779367832000,-500.0,0.00014799,2]
[422755405,1779367832000,-150.0,0.00014799,2]
[422755406,1779367832000,-500.0,0.00014799,2]
[422755401,1779367832000,-500.0,0.00014799,2]
[422755399,1779367832000,-22205.75,0.0001479,2]
[422755404,1779367832000,-500.0,0.00014799,2]
[422755388,1779367832000,-180.59,0.00014125,2]
[422755392,1779367832000,-159.82,0.00014402,2]
[422755400,1779367832000,-453.752,0.00014799,2]
[422755390,1779367832000,-500.0,0.00014288,2]
[422755395,1779367832000,-2313.25319481,0.000147,2]
[422755396,1779367832000,-2406.96706454,0.000147,2]
[422755394,1779367832000,-2070.33,0.0001466,2]
[422755393,1779367832000,-797.3,0.0001447,2]
[422755389,1779367832000,-215.89,0.00014206,2]
[422755420,1779367838000,-332.44049967,0.000147,2]
[422755419,1779367838000,-808.55672583,0.000147,2]
[422755418,1779367838000,-2488.11649926,0.000147,2]
[422755417,1779367838000,-1767.34001352,0.000147,2]
[422755480,1779367839000,500.0,0.00027399,120]
[422755538,1779367840000,-579.19626172,0.000147,2]
[422755539,1779367840000,-463.04543276,0.00014799,2]
[422755541,1779367841000,-500.0,0.00014799,2]
[422755540,1779367841000,-36.95456724,0.00014799,2]
[422755542,1779367841000,-5179.47353075,0.000148,2]
[422755552,1779367844000,-1458.14914893,0.000148,2]
[422755553,1779367846000,-1065.32192759,0.000148,2]
[422755556,1779367847000,-30920.40000001,0.000148,2]
[422755557,1779367847000,-4238.6,0.000148,2]
[422755555,1779367847000,-8909.55934986,0.000148,2]
[422755554,1779367847000,-2633.0980248,0.000148,2]
[422755562,1779367851000,151.0,0.00028767,120]
[422755563,1779367858000,467.06,0.00028767,120]
[422755564,1779367866000,467.06,0.00028767,120]
[422755565,1779367871000,167.0,0.00028767,120]
[422755566,1779367874000,467.06,0.00028767,120]
[422755567,1779367883000,467.06,0.00028767,120]
[422755568,1779367893000,467.06,0.00028767,120]
[422755569,1779367918000,1000.86,0.0002876,120]
[422755570,1779367932000,983.0,0.0002876,120]
[422755576,1779368195000,500.0,0.00027399,120]
[422755577,1779368453000,500.0,0.0002876,120]
[422755578,1779368469000,500.0,0.0002876,120]
[422755579,1779368482000,500.0,0.0002876,120]
[422755580,1779368498000,500.0,0.0002876,120]
[422755582,1779368531000,1374.75,0.00027701,120]
[422755583,1779368537000,226.25,0.0002876,120]
[422755586,1779368718000,176.9,6.527e-05,2]
[422755588,1779368794000,-176.9,7.187e-05,2]
[422755589,1779368794000,-176.9,7.517e-05,2]
[422755593,1779368794000,-176.9,8.507e-05,2]
[422755591,1779368794000,-176.9,8.177e-05,2]
[422755590,1779368794000,-176.9,7.847e-05,2]
[422755592,1779368794000,-250.0,8.239e-05,2]
[422755594,1779368794000,-176.9,8.837e-05,2]
[422755587,1779368794000,-176.9,6.857e-05,2]
[422755596,1779368794000,-176.9,9.497e-05,2]
[422755602,1779368794000,-995.49869065,0.00010688,5]
[422755599,1779368794000,-176.9,0.00010487,2]
[422755601,1779368794000,-1200.0,0.00010687,2]
[422755595,1779368794000,-176.9,9.167e-05,2]
[422755598,1779368794000,-176.9,0.00010157,2]
[422755597,1779368794000,-176.9,9.827e-05,2]
[422755600,1779368794000,-1200.0,0.00010687,2]
[422755609,1779368940000,1000.0,0.00028766,120]
[422755625,1779369031000,-176.9,0.00011477,2]
[422755623,1779369031000,-176.9,0.00011147,2]
[422755624,1779369031000,-208.68854764,0.00011182,2]
[422755627,1779369031000,-420.0,0.00011747,2]
[422755630,1779369031000,-176.9,0.00011807,2]
[422755622,1779369031000,-176.9,0.00010817,2]
[422755626,1779369031000,-603.0,0.00011747,2]
[422755631,1779369031000,-176.9,0.00012137,2]
[422755628,1779369031000,-1680.0,0.00011755,2]
[422755618,1779369031000,-380.68182096,0.00010688,5]
[422755621,1779369031000,-376.78777553,0.00010816,2]
[422755619,1779369031000,-12862.6295069,0.00010688,5]
[422755629,1779369031000,-214.25489035,0.00011757,2]
[422755615,1779369031000,-300.0,0.00010687,2]
[422755617,1779369031000,-674.06681493,0.00010688,5]
[422755613,1779369031000,-182.70534665,0.00010687,2]
[422755614,1779369031000,-1200.0,0.00010687,2]
[422755612,1779369031000,-1017.29465335,0.00010687,2]
[422755620,1779369031000,-25523.11444361,0.00010688,5]
[422755632,1779369031000,-176.9,0.00012467,2]
[422755616,1779369031000,-167.29465335,0.00010688,5]
[422755634,1779369031000,-200.0,0.00012646,2]
[422755633,1779369031000,-1102.85,0.00012615,2]
[422755652,1779369031000,-166.66,0.00013836,2]
[422755653,1779369031000,-1549.92,0.00013932,2]
[422755651,1779369031000,-166.66,0.00013699,2]
[422755650,1779369031000,-190.1,0.00013699,2]
[422755648,1779369031000,-1549.92,0.000136,2]
[422755645,1779369031000,-158.21,0.00013408,2]
[422755647,1779369031000,-151.0,0.00013597,2]
[422755655,1779369031000,-6373.5224002,0.00013968,2]
[422755646,1779369031000,-887.32,0.00013475,2]
[422755649,1779369031000,-3365.49,0.00013647,2]
[422755637,1779369031000,-587.0,0.00012913,2]
[422755639,1779369031000,-182.55,0.00012996,2]
[422755643,1779369031000,-1549.92,0.00013268,2]
[422755642,1779369031000,-150.0,0.00013267,2]
[422755638,1779369031000,-2351.0,0.00012931,2]
[422755636,1779369031000,-176.9,0.00012797,2]
[422755640,1779369031000,-2087.17,0.00013078,2]
[422755635,1779369031000,-486.8,0.00012745,2]
[422755641,1779369031000,-214.24,0.00013113,2]
[422755644,1779369031000,-988.16,0.00013298,2]
[422755693,1779369032000,-281.20309845,0.00014466,2]
[422755706,1779369032000,-156.0,0.00014469,2]
[422755700,1779369032000,-35692.9830555,0.00014469,2]
[422755691,1779369032000,-151.0,0.00014466,2]
[422755702,1779369032000,-13907.0344309,0.00014469,2]
[422755705,1779369032000,-156.0,0.00014469,2]
[422755707,1779369032000,-1549.92,0.00014595,2]
[422755703,1779369032000,-81323.5507404,0.00014469,2]
[422755714,1779369032000,-267.38460733,0.000148,2]
[422755713,1779369032000,-243.15245188,0.000148,2]
[422755709,1779369032000,-6000.9537,0.000146,2]
[422755708,1779369032000,-16319.3985,0.000146,2]
[422755687,1779369032000,-166.66,0.00014384,2]
[422755710,1779369032000,-1831.19039369,0.000147,2]
[422755712,1779369032000,-500.0,0.00014799,2]
[422755701,1779369032000,-4454.8915684,0.00014469,2]
[422755678,1779369032000,-151.0,0.00014366,2]
[422755695,1779369032000,-646.77472674,0.00014468,2]
[422755704,1779369032000,-156.0,0.00014469,2]
[422755657,1779369032000,-166.66,0.00013973,2]
[422755659,1779369032000,-2000.0,0.0001399,2]
[422755676,1779369032000,-1549.92,0.00014263,2]
[422755674,1779369032000,-166.66,0.00014247,2]
[422755672,1779369032000,-3292.0,0.00014224,2]
[422755670,1779369032000,-823.0,0.00014194,2]
[422755663,1779369032000,-166.66,0.0001411,2]
[422755680,1779369032000,-2023.36528701,0.00014369,2]
[422755682,1779369032000,-54097.601,0.00014369,2]
[422755665,1779369032000,-200.0,0.00014124,2]
[422755661,1779369032000,-2763.4,0.00014,2]
[422755667,1779369032000,-1102.85,0.00014192,2]
[422755684,1779369032000,-255.0,0.00014382,2]
[422755697,1779369032000,-3518.26499,0.00014469,2]
[422755699,1779369032000,-56041.7787871,0.00014469,2]
[422755711,1779369032000,-500.0,0.00014799,2]
[422755724,1779369032000,-500.0,0.00014999,2]
[422755715,1779369032000,-282.15,0.00014959,14]
[422755730,1779369032000,-525.68090872,0.00014999,2]
[422755737,1779369032000,-500.0,0.00014999,2]
[422755738,1779369032000,-9743.51829386,0.00015,2]
[422755739,1779369032000,-48283.64195452,0.00015,2]
[422755740,1779369032000,-65584.69391688,0.00015,2]
[422755741,1779369032000,-103707.87359994,0.00015,2]
[422755744,1779369032000,-500.0,0.00015511,2]
[422755743,1779369032000,-500.0,0.00015511,2]
[422755746,1779369032000,-1374.75,0.00015511,2]